Cogmind - Beta 15 @@@ ROGUE MODE // 2025.09.13 @ 03:43:46 Player: lepire Result: Destroyed by H-88 Terminator with Heavy Machine Gun Performance ------------- Evolutions (8) 4000 Regions Visited (10) 2000 Robots Destroyed (41) 205 Value Destroyed (1639) 1639 Prototype IDs (2) 40 Alien Tech Used (0) 0 Bonus (312) 312 TOTAL SCORE: 8196 Bonus ------- Follower Combat Kills 324 Friendly Fire -12 Cogmind --------- Core Integrity 0/1450 Matter 300/300 Energy 98/100 System Corruption 10% Temperature Cool (0) Movement Core (50) Location -2/Research Parts ------- > --- POWER (2) -------- (None) > --- PROPULSION (5) --- (None) > --- UTILITY (12) ----- Advanced Signal Interpreter Makeshift Hacking Suite > --- WEAPON (4) ------- (None) > --- INVENTORY (5) ---- Advanced Phase Shifter Authchip [Power] Authchip [Device] Authchip [Weapon] Quantum Rifle Peak State ------------ > --- POWER ------------ Light Antimatter Reactor Light Antimatter Reactor > --- PROPULSION ------- Medium Treads Medium Treads Spiked Medium Treads Spiked Medium Treads Spiked Medium Treads > --- UTILITY ---------- Small Storage Unit Subdweller Optics Advanced Signal Interpreter Long-range Terrain Scanner Improved Phase Shifter Improved Phase Shifter Advanced Powered Armor Focal Shield Hacking Suite Makeshift Hacking Suite Improved Hacking Suite System Shield > --- WEAPON ----------- Tesla Rifle Compact HERF Cannon Heavy Machine Gun Railgun > --- INVENTORY -------- Advanced Heat Sink Advanced Point Defense System Authchip [Power] Authchip [Device] Authchip [Device] Authchip [Weapon] Quantum Rifle [Rating: 123] Favorites ----------- Power Micro Fission Core Engine Ion Engine Power Core Micro Fission Core Reactor Light Antimatter Reactor Propulsion Spiked Medium Treads Treads Spiked Medium Treads Leg Aluminum Leg Wheel Compact Wheel Flight Unit Xenon Bombardment Thruster Utility Small Storage Unit Device Triangulator Storage Small Storage Unit Processor Advanced Signal Interpreter Hackware Hacking Suite Protection Improved Medium Armor Plating Weapon Heavy Machine Gun Energy Gun Tesla Rifle Energy Cannon Compact HERF Cannon Ballistic Gun Heavy Machine Gun Ballistic Cannon Bore Cannon Special Weapon Mining Laser Build | -11 -10 -10 -10 -7 -5 -4 -4 -4 -3 -2 ------- Run | Yrd Mat Min Sub Rec Fac Fac Upp Upp Res Res Slots Evolved 16 | . . . . . 10 2 . . 2 2 Power 1 | . . . . . 1 . . . . . Propulsion 3 | . . . . . 3 . . . . . Utility 10 | . . . . . 6 2 . . . 2 Weapon 2 | . . . . . . . . . 2 . Parts Attached 64 | 3 1 . 11 1 12 1 8 7 12 8 Power 7 | . . . 1 . 1 . 1 1 2 1 Engine 2 | . . . 1 . . . . . 1 . Core 2 | . . . . . 1 . 1 . . . Reactor 3 | . . . . . . . . 1 1 1 Propulsion 14 | 2 1 . . . 1 . 3 3 2 2 Treads 11 | 1 1 . . . 1 . 3 3 2 . Leg . | . . . . . . . . . . . Wheel 1 | 1 . . . . . . . . . . Hover . | . . . . . . . . . . . Flight 2 | . . . . . . . . . . 2 Utility 27 | 1 . . 4 . 9 1 2 1 6 3 Device 14 | 1 . . 1 . 4 1 2 1 1 3 Storage 1 | . . . 1 . . . . . . . Processor 3 | . . . 1 . 2 . . . . . Hackware 5 | . . . . . 1 . . . 4 . Protection 4 | . . . 1 . 2 . . . 1 . Artifact . | . . . . . . . . . . . Weapon 16 | . . . 6 1 1 . 2 2 2 2 Energy Gun 6 | . . . 2 1 1 . 1 1 . . Energy Cannon 1 | . . . . . . . . . 1 . Ballistic Gun 6 | . . . 2 . . . 1 1 1 1 Ballistic Cannon 2 | . . . 1 . . . . . . 1 Launcher . | . . . . . . . . . . . Special Weapon 1 | . . . 1 . . . . . . . Impact Weapon . | . . . . . . . . . . . Slashing Weapon . | . . . . . . . . . . . Piercing Weapon . | . . . . . . . . . . . Special Melee Weapon . | . . . . . . . . . . . Unidentified Prototypes . | . . . . . . . . . . . Corrupted Parts 1 | . . . . . . . . . . 1 System Corruption 4 | . . . . . . . . . . 4 Parts Lost 50 | . . . 3 . 1 1 8 6 5 26 Power 6 | . . . 1 . . . 1 1 1 2 Propulsion 13 | . . . . . . . 2 2 2 7 Utility 21 | . . . 1 . . . 3 3 2 12 Weapon 10 | . . . 1 . 1 1 2 . . 5 Highest Loss Streak 24 | . . . 1 . 1 1 9 2 3 24 To Critical Strikes 1 | . . . . . . . . 1 . . Average Backups 6 | 5 3 3 4 5 7 8 6 7 7 7 Power . | 1 1 1 . . . . . . . . Propulsion . | 3 1 1 1 . . 1 1 1 . . Utility 4 | . . . 1 4 5 6 5 5 6 6 Weapon . | 1 1 1 1 . . 1 . 1 . 1 Tool/Special . | . . . . . . . . . . . Unused Backups 20 | 7 1 . 1 . . . . 2 2 7 Power 2 | 1 . . 1 . . . . . . . Propulsion 4 | 2 1 . . . . . . . 1 . Utility 9 | 1 . . . . . . . 1 1 6 Weapon 5 | 3 . . . . . . . 1 . 1 Tool/Special . | . . . . . . . . . . . Average Slot Usage (%) 86 | . 100 100 94 100 77 81 75 90 91 71 Engine 4 | . 14 14 13 14 5 5 . . . . Core 3 | . . . . . 2 5 9 7 . . Reactor 1 | . . . . . . . . . 7 5 Treads 17 | . 15 14 24 17 9 10 13 21 21 14 Wheel 4 | . 12 14 3 10 5 5 5 3 . . Device 19 | . 14 14 2 14 19 24 19 30 21 13 Storage 6 | . 14 14 7 14 5 5 5 5 4 3 Processor 4 | . . . 9 . 3 5 5 5 4 4 Hackware 4 | . . . . . 4 5 5 2 14 11 Protection 3 | . . . 4 . 4 5 10 2 . 3 Energy Gun 5 | . 14 14 7 4 10 9 . 3 4 2 Ballistic Gun 5 | . 14 14 10 9 . . . 6 6 6 Ballistic Cannon 2 | . . . 9 14 . . . . . . Peak Build Rating 123 | 7 7 7 18 16 48 55 74 85 114 123 Average Rating 53 | 6 7 7 13 14 38 52 64 77 98 88 On Entrance 38 | 6 7 7 7 13 16 48 52 74 83 114 Naked Turns . | . . . . . . . . . . . Heaviest Build 78 | 15 15 15 27 25 38 40 53 54 72 78 Greatest Support 140 | 20 20 16 40 20 23 43 84 140 140 140 Greatest Overweight (x) 4 | . . . 1 1 2 2 1 . . 4 Average Overweight (x) . | . . . . 1 1 1 . . . . Largest Inventory Capacity 8 | 8 8 8 8 8 8 8 8 8 8 8 Average Capacity 7 | 8 8 8 6 8 8 8 8 8 8 7 Most Carried 8 | 7 3 3 5 8 8 8 8 8 8 8 Average Carried 6 | 5 3 3 4 6 7 8 6 7 7 7 Final Capacity 8 | 8 8 8 8 8 8 8 8 8 8 5 Final Carried 8 | 4 3 3 4 8 8 8 8 8 8 5 Class Distribution -------------------- 46% | Mutant 30% | Scavenger-Mutant 10% | Derelict-Mutant 10% | Scavenger-Tank Dominant Class ---------------- Mutant | -10/Materials Mutant | -10/Mines Mutant | -10/Subcaves Mutant | -7/Recycling Mutant | -5/Factory Skirmisher | -4/Factory Scavenger-Mutant | -4/Upper Caves Scavenger-Mutant | -4/Upper Caves Scavenger-Tank | -3/Research Scavenger-Tank | -2/Research Resources | -11 -10 -10 -10 -7 -5 -4 -4 -4 -3 -2 ----------- Run | Yrd Mat Min Sub Rec Fac Fac Upp Upp Res Res Matter Collected 1719 | 263 56 . 438 29 145 28 90 212 176 282 Remotely . | . . . . . . . . . . . Salvage Created 1937 | 154 108 . 263 57 323 . . 263 328 441 Parts 92 | 8 7 . 17 2 4 . . 17 16 21 Haulers Intercepted . | . . . . . . . . . . . Recyclers Shooed 2 | . . . . . 1 . . . 1 . Parts Field Recycled . | . . . . . . . . . . . Retrieved Matter . | . . . . . . . . . . . Parts Self-Destructed 56 | . . . 16 . . . 10 30 . . Prevented 3 | . . . . . . . . 3 . . Kills | -11 -10 -10 -10 -7 -5 -4 -4 -4 -3 -2 ------- Run | Yrd Mat Min Sub Rec Fac Fac Upp Upp Res Res Combat Hostiles Destroyed 31 | . 3 . 10 . 3 . . 6 2 7 Guns 20 | . 3 . 6 . 1 . . 6 2 2 Cannons 8 | . . . 4 . . . . . . 4 Classes Destroyed 13 | 2 1 . 4 . 1 . . 1 1 3 Tunneler 3 | 3 . . . . . . . . . . Recycler 4 | 1 . . . 1 1 . . . 1 . Operator 1 | . . . . . . . . . 1 . Turret 1 | . . . 1 . . . . . . . Watcher 1 | . . . . . . . . . . 1 Swarmer 10 | . . . 3 . . . . 4 . 3 Grunt 5 | . 3 . 1 . 1 . . . . . Brawler 2 | . . . . . 1 . . 1 . . Sentry 4 | . . . 1 . 1 . . . 2 . Hunter 3 | . . . . . . . . . . 3 Programmer 1 | . . . . . . . . . . 1 Subdweller 5 | . . . 5 . . . . . . . Mutant 1 | . . . . . . . . 1 . . Best Kill Streak 4 | 2 1 . 3 1 3 . . 4 2 3 Combat Bots Only 4 | . 1 . 3 . 2 . . 4 1 3 Max Kills in Single Turn 1 | 1 1 . 1 1 1 . . 1 1 1 Gunslinging . | . . . . . . . . . . . Exploded . | . . . . . . . . . . . Melee . | . . . . . . . . . . . Uniques/NPCs Destroyed . | . . . . . . . . . . . Combat | -11 -10 -10 -10 -7 -5 -4 -4 -4 -3 -2 -------- Run | Yrd Mat Min Sub Rec Fac Fac Upp Upp Res Res Hostile Shots Fired 616 | . 10 . 49 . 16 18 56 58 16 393 Missed 223 | . 3 . 8 . 7 7 18 20 6 154 Hits 393 | . 7 . 41 . 9 11 38 38 10 239 Melee 4 | . . . . . 2 . 2 . . . Projectile 389 | . 7 . 41 . 7 11 36 38 10 239 AOE 3 | . . . 3 . . . . . . . Critical Strikes 16 | . 1 . 2 . 1 . 3 1 . 8 Part Disruptions 1 | . . . . . . . . 1 . . Damage Taken 7457 | . 103 . 941 . 237 218 841 385 270 4462 Core 1876 | . 17 . 201 . 65 38 75 12 . 1468 Absorbed by Shields . | . . . . . . . . . . . Ignored by Resistances 366 | . . . . . . . . 66 18 282 Regen/Repaired (Parts) 12 | . . . . . 12 . . . . . Core Remaining (%) 78 | 100 . . . 12 93 . . 89 100 . Volleys Fired 170 | 11 12 . 50 1 17 1 2 29 9 38 Largest 4 | 2 2 . 2 2 2 2 2 2 4 4 Hottest 224 | 70 70 . 123 78 143 143 145 95 224 224 Shots Fired 313 | 22 24 . 75 2 34 2 3 40 21 90 Gun 253 | 22 24 . 46 1 34 2 3 40 19 62 Cannon 53 | . . . 22 1 . . . . 2 28 Launcher . | . . . . . . . . . . . Special 7 | . . . 7 . . . . . . . Kinetic 193 | 11 12 . 55 2 . . . 29 17 67 Thermal 81 | 11 12 . 20 . 34 2 2 . . . Explosive . | . . . . . . . . . . . Electromagnetic 39 | . . . . . . . 1 11 4 23 Robot Hit Streak 21 | 8 8 . 10 3 13 9 5 17 21 6 Robot Miss Streak 4 | 2 2 . 3 . 3 2 1 3 1 4 Penetration Max 1 | . . . 1 . . . . . 1 . Secondary Targets . | . . . . . . . . . . . Shots Hit Robots 197 | 15 18 . 43 1 22 2 3 26 17 50 Core Hits 91 | 5 8 . 17 1 17 2 2 10 10 19 Critical Kills 2 | . . . 2 . . . . . . . Critical Parts Destroyed 5 | . . . 4 . . . . 1 . . Critical Strikes 11 | . 1 . 8 . 1 . . 1 . . Burn 4 | . 1 . 2 . 1 . . . . . Destroy 7 | . . . 6 . . . . 1 . . Melee Attacks . | . . . . . . . . . . . Impact . | . . . . . . . . . . . Slashing . | . . . . . . . . . . . Piercing . | . . . . . . . . . . . Sneak Attacks . | . . . . . . . . . . . Combat Hostiles . | . . . . . . . . . . . Follow-up Attacks . | . . . . . . . . . . . Damage Inflicted 4306 | 187 225 . 757 21 573 43 66 610 462 1362 Guns 3243 | 187 225 . 456 21 495 28 66 610 395 760 Cannons 949 | . . . 301 . . . . . 67 581 Explosions 78 | . . . . . 78 . . . . . Melee . | . . . . . . . . . . . Ramming 36 | . . . . . . 15 . . . 21 Kinetic 2399 | 75 99 . 576 21 . . . 409 346 873 Thermal 997 | 112 126 . 181 . 495 28 55 . . . Explosive . | . . . . . . . . . . . Electromagnetic 874 | . . . . . 78 . 11 201 116 468 Impact . | . . . . . . . . . . . Slashing . | . . . . . . . . . . . Piercing . | . . . . . . . . . . . Highest Corruption 10 | . . . . . . . 1 1 . 10 Average Corruption 1 | . . . . . . . 1 1 . 7 Corruption Purged . | . . . . . . . . . . . Corruption Blocked . | . . . . . . . . . . . Effects 21 | . . . . . . . 1 14 . 6 Message Errors 5 | . . . . . . . 1 4 . . Heat Flow Errors 3 | . . . . . . . . 2 . 1 Energy Discharges 4 | . . . . . . . . 2 . 2 Parts Rejected 2 | . . . . . . . . 1 . 1 Data Loss (minor) 3 | . . . . . . . . 2 . 1 Data Loss (major) 1 | . . . . . . . . 1 . . Alerts 3 | . . . . . . . . 2 . 1 Overload Shots . | . . . . . . . . . . . Overflow Damage 37 | . . . . . . . . . . 37 Projectiles 37 | . . . . . . . . . . 37 Explosions . | . . . . . . . . . . . Melee . | . . . . . . . . . . . Knockbacks 4 | . . . 4 . . . . . . . Impact . | . . . . . . . . . . . Kinetic 4 | . . . 4 . . . . . . . Secondary . | . . . . . . . . . . . Self-Inflicted Damage 15 | . . . . . . 7 . . . 8 Shots . | . . . . . . . . . . . Rammed 12 | . . . . . 1 1 . . . 10 Targets Rammed 12 | . . . . . 1 1 . . . 10 Kicked . | . . . . . . . . . . . Crushed . | . . . . . . . . . . . Highest Temperature 213 | 65 108 . 42 24 195 57 88 171 138 213 Average Temperature 48 | 24 35 . 17 13 79 28 54 45 55 53 Received Heat Transfer 592 | . 75 . 78 . 63 84 196 78 18 . Siege Activations . | . . . . . . . . . . . Martial Activations . | . . . . . . . . . . . Shielding Activations . | . . . . . . . . . . . Robots Disrupted . | . . . . . . . . . . . Combat Hostiles . | . . . . . . . . . . . Robots Corrupted 2 | . . . . . . . . . . 2 Combat Hostiles 1 | . . . . . . . . . . 1 Parts Fried 5 | . . . . . . . . 3 . 2 Impact Corruptions . | . . . . . . . . . . . Robots Melted 2 | . . . . . 2 . . . . . Combat Hostiles 2 | . . . . . 2 . . . . . Parts Melted 4 | . . . . . 4 . . . . . Heat Transferred 2651 | 333 444 . 481 . 1206 62 125 . . . Parts Sabotaged . | . . . . . . . . . . . Parts Stolen . | . . . . . . . . . . . Parts Stripped . | . . . . . . . . . . . Power Chain Reactions . | . . . . . . . . . . . Alert | -11 -10 -10 -10 -7 -5 -4 -4 -4 -3 -2 ------- Run | Yrd Mat Min Sub Rec Fac Fac Upp Upp Res Res Maximum Alert Level . | . . . . . . . . . . . Low Security (%) 100 | 100 100 100 . 100 100 100 . . 100 100 Level 1 . | . . . . . . . . . . . Level 2 . | . . . . . . . . . . . Level 3 . | . . . . . . . . . . . Level 4 . | . . . . . . . . . . . Level 5 . | . . . . . . . . . . . High Security . | . . . . . . . . . . . Max Security . | . . . . . . . . . . . Peak Influence 90 | 10 56 17 . 31 80 . . . 44 90 Initial 50 | . . 17 . 31 50 . . . 12 20 Average 11 | 1 11 3 . 2 16 . . . 11 13 Influence Increases 1328 | 20 86 . 150 6 299 . 60 210 190 307 Destroy 0b10 Robot/C 620 | . 60 . 120 . 60 . . 160 80 140 Destroy 0b10 Robot/NC 45 | 20 . . . 5 5 . . . 10 5 Destroy Leader 122 | . 20 . . . 20 . . 10 30 42 Allied During Kill 43 | . . . . . . . . 25 18 . Trap Triggered on 0b10 10 | . . . . . 10 . . . . . Successful Hack 60 | . 6 . . . 34 . . . 20 . Disable Machine 45 | . . . . . 15 . . . . 30 Destroy Structure 18 | . . . . 1 . . . . 2 15 Advance Influence 50 | . . . . . 50 . . . . . Partial Spotted 45 | . . . . . 15 . . . 15 15 Lose Combat Pursuer 270 | . . . 30 . 90 . 60 15 15 60 Influence Decreases 1256 | 20 40 46 84 72 299 . 60 191 173 271 Entered New Map 87 | . . 29 . 35 . . . . 7 16 Time Decay 969 | 20 40 17 74 37 289 . 60 161 146 125 Lost Part 160 | . . . 10 . 10 . . 10 . 130 Lost Ally 40 | . . . . . . . . 20 20 . Squads Dispatched 10 | . 2 . . . 2 1 . . 1 4 Investigation 3 | . 1 . . . . . . . . 2 Extermination 3 | . . . . . 2 . . . . 1 Reinforcement 3 | . 1 . . . . . . . 1 1 Assault . | . . . . . . . . . . . Garrison 1 | . . . . . . 1 . . . . Intercept . | . . . . . . . . . . . Searches Triggered . | . . . . . . . . . . . Construction Impeded 1 | . . . . . . . . . . 1 Haulers Reinforced . | . . . . . . . . . . . Active Scanning Responses . | . . . . . . . . . . . Cargo Convoy Interrupts . | . . . . . . . . . . . Stealth | -11 -10 -10 -10 -7 -5 -4 -4 -4 -3 -2 --------- Run | Yrd Mat Min Sub Rec Fac Fac Upp Upp Res Res Distress Signals 3 | . 1 . . . . 1 . . 1 . Communications Jammed . | . . . . . . . . . . . Distress Signals . | . . . . . . . . . . . Times Spotted 86 | . 4 . 15 . 9 3 11 13 7 24 Peak Tracking Total 11 | . 2 . 4 . 3 4 4 4 2 11 Tactical Retreats 12 | . . . 2 . 5 . 1 1 1 2 Traps | -11 -10 -10 -10 -7 -5 -4 -4 -4 -3 -2 ------- Run | Yrd Mat Min Sub Rec Fac Fac Upp Upp Res Res Traps Triggered 5 | . . . 4 . . . . . . 1 Indirectly . | . . . . . . . . . . . Trap Hack Attempts . | . . . . . . . . . . . Triggered . | . . . . . . . . . . . Disarmed . | . . . . . . . . . . . Reprogrammed . | . . . . . . . . . . . Reused 1 | . . . . . 1 . . . . . Traps Extracted . | . . . . . . . . . . . Installed 1 | . . . . . 1 . . . . . Triggered 1 | . . . . . 1 . . . . . Most Traps Carried 1 | . . . 1 1 1 . . . . . Machines | -11 -10 -10 -10 -7 -5 -4 -4 -4 -3 -2 ---------- Run | Yrd Mat Min Sub Rec Fac Fac Upp Upp Res Res Machines Disabled 5 | . . . 1 . 1 . . 1 . 2 Max in Single Turn 1 | . . . 1 . 1 . . 1 . 1 Machines Repaired . | . . . . . . . . . . . Machines Dismantled . | . . . . . . . . . . . Machines Sabotaged . | . . . . . . . . . . . Overloaded Fab Kills . | . . . . . . . . . . . Hacking | -11 -10 -10 -10 -7 -5 -4 -4 -4 -3 -2 --------- Run | Yrd Mat Min Sub Rec Fac Fac Upp Upp Res Res Machines Accessed 15 | . 3 . 1 4 3 . . . 3 1 Terminals 7 | . 3 . . . 2 . . . 2 . Fabricators 1 | . . . . . . . . . . 1 Repair Stations 2 | . . . . . 1 . . . 1 . Recycling Units 4 | . . . . 4 . . . . . . Scanalyzers . | . . . . . . . . . . . Garrison Access . | . . . . . . . . . . . Total Hacks 45 | . 8 . 4 10 8 . . . 12 3 Successful 25 | . 3 . 4 6 5 . . . 7 . Failed 20 | . 5 . . 4 3 . . . 5 3 Catastrophic 3 | . 1 . . 1 . . . . 1 . Database Lockouts . | . . . . . . . . . . . Manual 3 | . 1 . . . 2 . . . . . Terminals 22 | . 8 . . . 6 . . . 8 . Fabricators 3 | . . . . . . . . . . 3 Repair Stations 6 | . . . . . 2 . . . 4 . Recycling Units 10 | . . . . 10 . . . . . . Scanalyzers . | . . . . . . . . . . . Garrison Access . | . . . . . . . . . . . Terminal Hacks 15 | . 3 . 4 . 3 . . . 5 . Record 6 | . . . 4 . 1 . . . 1 . Prototype ID Bank 1 | . 1 . . . . . . . . . Fabricator Index 1 | . . . . . 1 . . . . . Repair Station Index 1 | . . . . . . . . . 1 . Recycling Unit Index 1 | . . . . . . . . . 1 . Garrison Index 1 | . . . . . . . . . 1 . Alert Level 1 | . . . . . 1 . . . . . Locate Traps 2 | . 1 . . . . . . . 1 . Zone Layout 1 | . 1 . . . . . . . . . Fabricator Hacks . | . . . . . . . . . . . Repair Station Hacks 4 | . . . . . 2 . . . 2 . Scan Component 2 | . . . . . 1 . . . 1 . Repair 2 | . . . . . 1 . . . 1 . Recycling Unit Hacks 6 | . . . . 6 . . . . . . Report Inventory 4 | . . . . 4 . . . . . . Retrieve Components 2 | . . . . 2 . . . . . . Scanalyzer . | . . . . . . . . . . . Garrison Access Hacks . | . . . . . . . . . . . Unauthorized Hacks . | . . . . . . . . . . . Terminals . | . . . . . . . . . . . Fabricators . | . . . . . . . . . . . Repair Stations . | . . . . . . . . . . . Recycling Units . | . . . . . . . . . . . Scanalyzers . | . . . . . . . . . . . Garrison Access . | . . . . . . . . . . . Data Cores Recovered . | . . . . . . . . . . . Used . | . . . . . . . . . . . Hacking Detections 11 | . 3 . . 3 2 . . . 2 1 Full Trace Events 3 | . 1 . . 1 . . . . . 1 Feedback Events 1 | . . . . . . . . . . 1 Hackware Fried 1 | . . . . . . . . . . 1 Feedback Blocked . | . . . . . . . . . . . Robot Schematics Acquired . | . . . . . . . . . . . Robots Built . | . . . . . . . . . . . Authchips . | . . . . . . . . . . . Time . | . . . . . . . . . . . Total Robot Build Rating . | . . . . . . . . . . . Part Schematics Acquired . | . . . . . . . . . . . Parts Built . | . . . . . . . . . . . Authchips . | . . . . . . . . . . . Time . | . . . . . . . . . . . Total Part Build Rating . | . . . . . . . . . . . Parts Repaired 2 | . . . . . 1 . . . 1 . Time 36 | . . . . . 22 . . . 14 . Parts Recycled . | . . . . . . . . . . . Recycled Matter . | . . . . . . . . . . . Retrieved Matter . | . . . . . . . . . . . Retrieved Components 5 | . . . . 5 . . . . . . Parts Scanalyzed . | . . . . . . . . . . . Part Schematics Acquired . | . . . . . . . . . . . Parts Damaged . | . . . . . . . . . . . Bothacking | -11 -10 -10 -10 -7 -5 -4 -4 -4 -3 -2 ------------ Run | Yrd Mat Min Sub Rec Fac Fac Upp Upp Res Res Used RIF Installer . | . . . . . . . . . . . Robots Hacked . | . . . . . . . . . . . Non-combat . | . . . . . . . . . . . Combat . | . . . . . . . . . . . Robot Hacks Applied . | . . . . . . . . . . . Relay Couplers Released . | . . . . . . . . . . . Fabnet Peak Effective % . | . . . . . . . . . . . Robots Rewired 4 | . . . . . . . . 4 . . Allies Hacked . | . . . . . . . . . . . Hacks Repelled . | . . . . . . . . . . . Allies | -11 -10 -10 -10 -7 -5 -4 -4 -4 -3 -2 -------- Run | Yrd Mat Min Sub Rec Fac Fac Upp Upp Res Res Total Allies 9 | . . 5 . . . . . 4 . . Largest Group 5 | . . 5 4 . . . . 4 3 . Highest-Rated Group 189 | . . 83 71 . . . . 189 142 . Highest-Rated Ally 48 | . . 31 31 . . . . 48 48 . Total Orders 9 | . . 1 . . 1 2 4 1 . . ROAM 1 | . . 1 . . . . . . . . EXPLORE 6 | . . . . . 1 1 3 1 . . RETURN 2 | . . . . . . 1 1 . . . Ally Attacks 53 | . . . 20 . . . . 14 19 . Total Damage 1161 | . . . 272 . . . . 429 460 . Kills 7 | . . . 2 . . . . 3 2 . Allies Corrupted . | . . . . . . . . . . . Allies Melted . | . . . . . . . . . . . Intel | -11 -10 -10 -10 -7 -5 -4 -4 -4 -3 -2 ------- Run | Yrd Mat Min Sub Rec Fac Fac Upp Upp Res Res Active Infowar (turns) 5756 | 30 207 140 162 490 1274 133 869 1519 499 433 Optics 1758 | . . . 20 490 99 . . 740 . 409 Sensors 1116 | . . . . . 950 133 33 . . . Terrain 3333 | . . . . . . 104 869 1428 499 433 Seismic 1934 | 30 207 140 142 . 1274 133 8 . . . Triangulation 3873 | . . . . . 978 133 869 1428 465 . Robot Analysis Total . | . . . . . . . . . . . Derelict Logs Recovered 2 | . . . 1 . . . 1 . . . Drone Launches 9 | . . . . . 2 1 5 1 . . Drone Recoveries 6 | . . . . . 1 1 4 . . . Exploration | -11 -10 -10 -10 -7 -5 -4 -4 -4 -3 -2 ------------- Run | Yrd Mat Min Sub Rec Fac Fac Upp Upp Res Res Turns Passed 6887 | 109 207 140 891 490 1274 133 869 1705 499 570 Spaces Moved 4043 | 61 137 102 473 368 731 73 495 961 262 380 Core 110 | . . . . . . . . . . 110 Treads 2306 | . 8 . 315 42 2 7 495 961 262 214 Legs 43 | 43 . . . . . . . . . . Wheels 1528 | 18 129 102 158 326 729 66 . . . . Hover . | . . . . . . . . . . . Flight 56 | . . . . . . . . . . 56 Fastest Speed 37 | 100 100 100 100 115 115 130 160 160 160 37 Average Speed 140 | 114 103 100 148 129 125 132 161 160 160 113 Slowest Speed 360 | 120 160 100 240 240 240 160 240 160 160 360 Overloaded Moves . | . . . . . . . . . . . Propulsion Burnouts . | . . . . . . . . . . . Robots Hopped . | . . . . . . . . . . . Potential Cave-ins . | . . . . . . . . . . . Cave-ins Triggered . | . . . . . . . . . . . Exploration Rate (%) 30 | 4 27 16 41 57 10 2 85 74 8 9 Regions Visited 10 Branch Regions 5 Pre-discovered Areas 2 | . . . 2 . . . . . . . Known Exits Taken 6 | . . . 1 . 1 1 1 1 1 . Unknown Exits Taken 4 | 1 1 1 . 1 . . . . . . Scrap Searched 6 | . . . . . . . 2 4 . . Spaces Dug . | . . . . . . . . . . . Terrain Destroyed 12 | . . . 6 . . . . . . 6 Melee . | . . . . . . . . . . . Projectile 12 | . . . 6 . . . . . . 6 AOE . | . . . . . . . . . . . Terrain Rammed . | . . . . . . . . . . . Walls Destroyed . | . . . . . . . . . . . Machines Disabled . | . . . . . . . . . . . Actions | -11 -10 -10 -10 -7 -5 -4 -4 -4 -3 -2 --------- Run | Yrd Mat Min Sub Rec Fac Fac Upp Upp Res Res Total 4895 | 78 177 140 561 380 1045 101 558 1088 323 444 Wait 484 | . 26 39 14 2 268 26 47 30 31 1 Move 4033 | 60 136 101 472 367 730 72 494 960 261 380 Hop . | . . . . . . . . . . . Pick Up 25 | 1 . . 2 6 5 . 2 3 5 1 Fast Attach 43 | 1 . . 2 . 6 1 7 9 9 8 Attach 19 | . . . 3 . 8 . 3 1 2 2 Detach 9 | . . . 2 . 4 . 1 . 1 1 Swap 29 | 2 2 . 16 2 3 . 1 1 1 1 Drop 18 | 3 1 . . 2 2 . . 4 4 2 Fire 170 | 11 12 . 50 1 17 1 2 29 9 38 Melee . | . . . . . . . . . . . Ram 12 | . . . . . 1 1 . . . 10 Kick . | . . . . . . . . . . . Crush . | . . . . . . . . . . . Escape Stasis . | . . . . . . . . . . . Rewire 52 | . . . . . . . 1 51 . . Trap 1 | . . . . . 1 . . . . . Miscellaneous . | . . . . . . . . . . . Route ------- -11/Scrapyard -10/Materials -10/Mines -10/Subcaves -7/Recycling -5/Factory (discovered 2 exits: *Fac / *Upp) -4/Factory -4/Upper Caves -4/Upper Caves -3/Research -2/Research History --------- Turn | Location | Event 7 | -11/Scrapyard | Discovered new exit (range 3) 110 | -11/Scrapyard | Entered Materials 176 | -10/Materials | Discovered new exit (range 17) 317 | -10/Materials | Entered Mines 324 | -10/Mines | Met a Derelict bent on vengeance 325 | -10/Mines | Build established: Mutant 330 | -10/Mines | Assisted by bots powering up and referring to "LRC-V3" 407 | -10/Mines | Discovered new exit (range 9) 457 | -10/Mines | Entered Subcaves 457 | -10/Subcaves | Accompanied by 4 allies 462 | -10/Subcaves | Led the pair of lost Derelicts to an unsafe place 488 | -10/Subcaves | Shifting Twisted Machinery released Flamer 489 | -10/Subcaves | Learned Materials stockpile data 493 | -10/Subcaves | Shifting Twisted Machinery released Shrapnel Trap 632 | -10/Subcaves | Learned location of Zion (-6) 632 | -10/Subcaves | Met a Zionite searching for "candidates" 745 | -10/Subcaves | Lost 5 allies 889 | -10/Subcaves | Core integrity fell below 50% 924 | -10/Subcaves | Shifting Twisted Machinery released Mak. Thermal Plating 932 | -10/Subcaves | Shifting Twisted Machinery released Sub. Optics 1047 | -10/Subcaves | Visited Clippyterm 1052 | -10/Subcaves | Identified exit to Recycling 1052 | -10/Subcaves | Learned location of Extension (-5) 1139 | -10/Subcaves | Core integrity fell below 20% 1348 | -10/Subcaves | Entered Recycling 1725 | -7/Recycling | Discovered new exit (range 20) 1838 | -7/Recycling | Entered Factory 1838 | -5/Factory | Evolved 10 slots: Power x1, Propulsion x3, Utility x6 2187 | -5/Factory | Repaired Broken Sub. Optics 2953 | -5/Factory | Discovered new exit (range 15) 2953 | -5/Factory | Discovered new exit (range 5) 2958 | -5/Factory | Identified exit to Upper Caves 2971 | -5/Factory | Identified exit to Factory 3112 | -5/Factory | Entered another Factory area 3112 | -4/Factory | Evolved 2 slots: Utility x2 3196 | -4/Factory | Garrison activated, responded to threat 3228 | -4/Factory | Discovered new exit (range 8) 3243 | -4/Factory | Identified exit to Upper Caves 3245 | -4/Factory | Entered Upper Caves 3309 | -4/Upper Caves | Lost 9 parts (1p2n3u3w) 3310 | -4/Upper Caves | Learned Research garrison access intel 3652 | -4/Upper Caves | Build established: Scavenger-Mutant 3879 | -4/Upper Caves | Encountered a Warlord checkpoint 4023 | -4/Upper Caves | Discovered new exit (range 36) 4101 | -4/Upper Caves | Identified exit to Upper Caves 4114 | -4/Upper Caves | Entered another Upper Caves area 4288 | -4/Upper Caves | Encountered a Warlord checkpoint 4375 | -4/Upper Caves | Discovered new exit (range 18) 4408 | -4/Upper Caves | Identified exit to Research 4804 | -4/Upper Caves | Attracted the attention of an 0b10 checkpoint 5118 | -4/Upper Caves | Spotted B-86 Titan 5141 | -4/Upper Caves | Build established: Derelict-Mutant 5412 | -4/Upper Caves | Attacked by a delusional Derelict stockpiling Unaware 5819 | -4/Upper Caves | Entered Research 5819 | -3/Research | Accompanied by 3 allies 5819 | -3/Research | Evolved 2 slots: Weapon x2 5820 | -3/Research | Loaded intel: 3 garrison access locations 5878 | -3/Research | Build established: Scavenger-Mutant 5939 | -3/Research | Lost 3 parts (1p2u) 6154 | -3/Research | Repaired Broken Sub. Optics 6237 | -3/Research | Discovered new exit (range 5) 6283 | -3/Research | Identified exit to Research 6287 | -3/Research | Found Adv. Powered Armor 6308 | -3/Research | Build established: Scavenger-Tank 6318 | -3/Research | Entered another Research area 6318 | -2/Research | Evolved 2 slots: Utility x2 6509 | -2/Research | Hacking Suite fried by hacking feedback 6849 | -2/Research | Core integrity fell below 50% 6880 | -2/Research | Lost 24 parts (2p7n10u5w) 6880 | -2/Research | System corruption reached 10% 6886 | -2/Research | Core integrity fell below 20% 6888 | -2/Research | Destroyed by H-88 Terminator with Heavy Machine Gun Last Messages --------------- 06848_ System corrupted: Energy discharge (-21). 06849_ Penetrated by Slug. 06849_ Xenon Bombardment Thruster destroyed. 06849_ Slug penetrates Wall. 06849_ Xenon Bombardment Thruster destroyed. 06851_ Penetrated by Slug. 06867_ System corrupted: Heat flow error (+262). 06869_ Acquired Lrn. Terrain Scanner. 06872_ Slammed into S-43 Plague. 06879_ Destabilizing: System corrupted (+1). 06880_ Slammed into S-43 Plague. 06880_ Adv. Signal Interpreter broken. 06880_ Destabilizing: Short circuit. 06881_ Slammed into S-43 Plague. 06884_ Penetrated by Slug. 06884_ Lrn. Terrain Scanner destroyed. 06885_ Slug penetrates Wall. 06885_ Penetrated by Slug. 06885_ Slug penetrates Wall. 06886_ Penetrated by Slug. Map ----- +----------------------------------------------------+ | ?????????????????????????????#?????? ??? ?????? ? | | ??????????????????????#??????????###?? ???? ? ? | | ????????????????????????????????#????? ??????????# | | ????????????????????#?????????????????? ????? ? ? | | ??????????????????????????????###########?????? ? | | ??????????????????????????????# #???? ? ? | | ???????????????????#??????????# ###?#????? | | ?????????????????????????#????# #???? ??? | | ??????????????????????????????# #???#?#??? | | ??????????????????????????##??#####+#####????##### | | ?????????????????#??????????????#?# #??????#??# | | ????????????????????????????#?????# #???#?????# | | ????????????????????????#??#??#??## #?????#??## | | ???????????????????????????#????### ##?#?#????# | | ??????????????????????????????????# ##?##?#?#?# | | ????????????########?#??????#?????# #?##??????# | | ???????????# "" ?############## #?#??#??? # | | ???????????# ""S # s ###???#?###""# | | ???????????# "" # s #?????#?# | | ???????????# ; s ##??#?#?# | | ???????????# ! # s############## | | ???????????# # h # *# | | ???????????# ?## hh# # # | | ???????????# ??# h # # # | | ???????????########??## h # # # | | ????????????????#?????# @ # """ # + | | ??????????????????????# # """ """ + # | | ??????????????????????# s # ""F= """ # # | | ??????????????????????# # ""= """ # # | | ??????????????##??????# # """ """ # ]# | | ????????###### #??????# # """ """ # # | | ????????# ==! #??????# # # | | ????????# ==! #???#??# # ### | | ????????# =! ???????# ################ !! | | ????????# ######## #????#??# # | | ????????? ?# # ! #?##????# # | | ?????????? ?# # #???????# + | | ????????####"### # #?????#?# # | | ????????# / # #?#?????# # | | ????????# ### ;u "#??????# # | | ????????# #?# # "#???#??###+#### | | ????????# #?######## "#???#???## #?## | | ????????# #???????# T#?######## #### | | ????????# #???????# "#?# # | | ????????# #???????+ "#?# # | | ????????# #???????# "#?# # | | ?????####/## #???????# #### = # | | ?????# ! # #???????# + # | | ?????# # #???????# #?? # | | ?????# # ######### #####+## | +----------------------------------------------------+ Best States ------------- Heat Dissipation 68 Energy Generation 41 Energy Capacity 365 Matter Stores 300 Matter Capacity 300 Sight Range 21 Robot Scan Range 15 Terrain Scan Range 24 Terrain Scan Density 135 Armor Coverage 800 Resistance: KI 20 Phase Shifting 10 Evasion (%) 62 Recoil Reduction 5 Offensive Hacking 33 Defensive Hacking 10 Authchip Count 4 Item Schematics ----------------- None Robot Schematics ------------------ None Fabricated ------------ Nothing Repaired ---------- Sub. Optics | 70% | -5/Factory | Broken Sub. Optics | 99% | -3/Research | Broken Alien Tech Used ----------------- None Achievements -------------- A New Friend Challenges ------------ None Game ------ Seed WaveGravityRifle Manual? 0 Play Time 01:21:39 Cumulative 56.7 hours Start 2025.09.13 @ 02:10:47 End 2025.09.13 @ 03:43:46 Sessions 1 Manual Loads 0 Difficulty Rogue Special Mode None Game No. 69 Rogue 39 Adventurer 30 Explorer 0 Win Type - Total 0 Types 0/0/0/0/0/0/0/0/0/0 Lore% 27 Gallery% 32 Achievement% 29 Wizard Run 0 Options --------- Layout 1 ASCII 0 Keyboard 1 Movement Arrows Keybinds 0 Fullscreen 1 Font 24/Terminus Map View 50x35 Zoom Use 0% Tactical HUD 1 Map Filters NONE Filters NONE Steam 1 RUN: 89eea121-af3a-4260-a644-3e98143bc563